Workbook

Sheet Sheet1
A1: Initial stock price | B1: 12
A2: Mean return | B2: 0.12
A3: Sigma | B3: 0.35
A4: Delta t | B4: =1/12 -> 0.08333333333 | C4: =getformula(B4) -> <-- =1/12
A6: Month | B6: Random Number | C6: Stock Price
A7: 0 | C7: =B1 -> 12 | D7: =getformula(C7) -> <-- =B1
A8: 1 | B8: =_xlfn.NORM.S.INV(RAND()) -> -0.7971383585 | C8: =C7*EXP($B$2*$B$4+$B$3*B8*SQRT($B$4)) -> 11.18268659 | D8: =getformula(C8) -> <-- =C7*EXP($B$2*$B$4+$B$3*B8*SQRT($B$4))
A9: 2 | B9: =_xlfn.NORM.S.INV(RAND()) -> 0.7515374927 | C9: =C8*EXP($B$2*$B$4+$B$3*B9*SQRT($B$4)) -> 12.18614081
A10: 3 | B10: 0.3285323395 | C10: 12.72403848
A11: 4 | B11: 0.6610187924 | C11: 13.73956861
A12: 5 | B12: 0.6612853575 | C12: 14.83654974
A13: 6 | B13: -1.696812764 | C13: 12.62468513
A14: 7 | B14: 0.4627793038 | C14: 13.3619557
A15: 8 | B15: 1.195933175 | C15: 15.22965024
A16: 9 | B16: -1.497562776 | C16: 13.22271262
A17: 10 | B17: 1.190644945 | C17: 15.06289388
A18: 11 | B18: 1.78366675 | C18: 18.21871649
A19: 12 | B19: -0.2608352866 | C19: 17.92319372

Sheet Sheet2
A1: Initial stock price | B1: 12
A2: Mean return | B2: 0.12
A3: Sigma | B3: 0.35
A4: Delta t | B4: =1/250 -> 0.004 | C4: =getformula(B4) -> <-- =1/250 | E4: =getformula(B8) -> <-- =B7*EXP($B$2*$B$4+$B$3*SQRT($B$4)*NORM.S.INV(RAND()))
A6: Day | B6: Stock Price | C6: Return
A7: 0 | B7: =B1 -> 12 | E7: Annual mean return | F7: =AVERAGE(C8:C257)*250 -> 0.2019382257
A8: 1 | B8: =B7*EXP($B$2*$B$4+$B$3*SQRT($B$4)*_xlfn.NORM.S.INV(RAND())) -> 11.99358258 | C8: =LN(B8/B7) -> -0.0005349284008 | E8: Annual Sigma | F8: =_xlfn.STDEV.S(C8:C257)*SQRT(250) -> 0.3336973666
A9: 2 | B9: =B8*EXP($B$2*$B$4+$B$3*SQRT($B$4)*_xlfn.NORM.S.INV(RAND())) -> 12.05698154 | C9: =LN(B9/B8) -> 0.005272152024
A10: 3 | B10: 11.67374182 | C10: -0.03230184286
A11: 4 | B11: 12.09886877 | C11: 0.03576992726
A12: 5 | B12: 12.05768483 | C12: -0.003409755754
A13: 6 | B13: 12.22638527 | C13: 0.0138941416
A14: 7 | B14: 12.78294838 | C14: 0.04451578165
A15: 8 | B15: 12.50562581 | C15: -0.02193351728
A16: 9 | B16: 12.3616735 | C16: -0.01157776848
A17: 10 | B17: 12.01565582 | C17: -0.02839038857
A18: 11 | B18: 12.14272329 | C18: 0.01051963321
A19: 12 | B19: 12.86224648 | C19: 0.05756630698
A20: 13 | B20: 13.03646859 | C20: 0.01345431506
A21: 14 | B21: 13.37412008 | C21: 0.02557079568
A22: 15 | B22: 13.60627988 | C22: 0.01720993985
A23: 16 | B23: 13.57165884 | C23: -0.002547732506
A24: 17 | B24: 13.21971785 | C24: -0.02627421778
A25: 18 | B25: 13.03083231 | C25: -0.01439122573
A26: 19 | B26: 12.7817824 | C26: -0.01929735843
A27: 20 | B27: 12.72064372 | C27: -0.004794743563
A28: 21 | B28: 12.97306626 | C28: 0.01964921798
A29: 22 | B29: 12.71682902 | C29: -0.01994914615
A30: 23 | B30: 12.39029103 | C30: -0.02601305093
A31: 24 | B31: 12.4313879 | C31: 0.003311371749
A32: 25 | B32: 12.67281913 | C32: 0.01923491774
A33: 26 | B33: 12.78622655 | C33: 0.008909066569
A34: 27 | B34: 13.37885345 | C34: 0.04530681932
A35: 28 | B35: 13.5521638 | C35: 0.01287086447
A36: 29 | B36: 13.74838901 | C36: 0.01437542982
A37: 30 | B37: 13.88606442 | C37: 0.009964123307
A38: 31 | B38: 14.00773726 | C38: 0.008724060586
A39: 32 | B39: 14.32250569 | C39: 0.02222228644
A40: 33 | B40: 14.12164072 | C40: -0.01412370071
A41: 34 | B41: 14.65220697 | C41: 0.03688254657
A42: 35 | B42: 14.24079109 | C42: -0.02848051179
A43: 36 | B43: 13.88261054 | C43: -0.02547344188
A44: 37 | B44: 13.79291758 | C44: -0.00648177524
A45: 38 | B45: 13.4901839 | C45: -0.02219293886
A46: 39 | B46: 13.58392296 | C46: 0.006924655295
A47: 40 | B47: 13.97079795 | C47: 0.02808233221
A48: 41 | B48: 13.93221946 | C48: -0.002765185323
A49: 42 | B49: 13.28292426 | C49: -0.04772478449
A50: 43 | B50: 12.69082852 | C50: -0.04559975138
A51: 44 | B51: 12.40779201 | C51: -0.02255490553
A52: 45 | B52: 12.15435808 | C52: -0.0206368682
A53: 46 | B53: 11.96134193 | C53: -0.01600785159
A54: 47 | B54: 12.28776678 | C54: 0.02692425326
A55: 48 | B55: 12.55662763 | C55: 0.02164442729
A56: 49 | B56: 12.88145232 | C56: 0.02553984786
A57: 50 | B57: 12.70312838 | C57: -0.01394018006
A58: 51 | B58: 13.01340215 | C58: 0.02413146872
A59: 52 | B59: 13.03768351 | C59: 0.001864134952
A60: 53 | B60: 12.68502574 | C60: -0.02742167324
A61: 54 | B61: 12.85575026 | C61: 0.01336897996
A62: 55 | B62: 12.53148328 | C62: -0.02554706268
A63: 56 | B63: 12.34779246 | C63: -0.01476684099
A64: 57 | B64: 12.57852041 | C64: 0.0185133307
A65: 58 | B65: 12.52307406 | C65: -0.00441776237
A66: 59 | B66: 12.23529378 | C66: -0.02324815924
A67: 60 | B67: 12.25851625 | C67: 0.001896191777
A68: 61 | B68: 12.94488521 | C68: 0.05447984608
A69: 62 | B69: 12.61546374 | C69: -0.02577740329
A70: 63 | B70: 12.28821052 | C70: -0.02628303405
A71: 64 | B71: 12.25079767 | C71: -0.003049257573
A72: 65 | B72: 12.25412186 | C72: 0.0002713075561
A73: 66 | B73: =B72*EXP($B$2*$B$4+$B$3*SQRT($B$4)*_xlfn.NORM.S.INV(RAND())) -> 12.17032358 | C73: =LN(B73/B72) -> -0.006861863062
A74: 67 | B74: 12.04655557 | C74: -0.01022172114
A75: 68 | B75: 11.89803547 | C75: -0.01240547387
A76: 69 | B76: 12.14045158 | C76: 0.02016968269
A77: 70 | B77: 12.03459934 | C77: -0.008757203968
A78: 71 | B78: 12.10808615 | C78: 0.006087726944
A79: 72 | B79: 12.08596676 | C79: -0.001828498632
A80: 73 | B80: 11.9067011 | C80: -0.01494364833
A81: 74 | B81: 11.94836082 | C81: 0.003492739848
A82: 75 | B82: 11.86583223 | C82: -0.006931070107
A83: 76 | B83: 11.97013104 | C83: 0.008751438475
A84: 77 | B84: 12.07832168 | C84: 0.008997781864
A85: 78 | B85: 12.28824208 | C85: 0.01723062744
A86: 79 | B86: 12.4084582 | C86: 0.009735476794
A87: 80 | B87: 12.7500621 | C87: 0.02715778875
A88: 81 | B88: 12.39618933 | C88: -0.02814702911
A89: 82 | B89: 12.67819631 | C89: 0.02249457889
A90: 83 | B90: 12.50893221 | C90: -0.01344072625
A91: 84 | B91: 12.8662335 | C91: 0.02816335584
A92: 85 | B92: 12.91187649 | C92: 0.00354122465
A93: 86 | B93: 12.99550894 | C93: 0.006456285136
A94: 87 | B94: 12.92477964 | C94: -0.005457460376
A95: 88 | B95: 12.55198025 | C95: -0.02926792918
A96: 89 | B96: 12.55580928 | C96: 0.0003050074978
A97: 90 | B97: 13.0942945 | C97: 0.04199315215
A98: 91 | B98: 13.01848629 | C98: -0.005806231376
A99: 92 | B99: 13.18867047 | C99: 0.01298779354
A100: 93 | B100: 12.82374203 | C100: -0.02805986469
A101: 94 | B101: 12.89492888 | C101: 0.005535825529
A102: 95 | B102: 13.45390846 | C102: 0.04243553117
A103: 96 | B103: 13.31820167 | C103: -0.01013800956
A104: 97 | B104: 13.25881947 | C104: -0.004468694442
A105: 98 | B105: 13.3729226 | C105: 0.008569009333
A106: 99 | B106: 13.10161138 | C106: -0.02049673184
A107: 100 | B107: 12.97959897 | C107: -0.009356413914
A108: 101 | B108: 13.50591448 | C108: 0.03974888417
A109: 102 | B109: 13.44799762 | C109: -0.004297480145
A110: 103 | B110: 13.0419976 | C110: -0.03065548425
A111: 104 | B111: 13.462275 | C111: 0.03171659475
A112: 105 | B112: 13.16110213 | C112: -0.02262565902
A113: 106 | B113: 13.01339838 | C113: -0.01128619922
A114: 107 | B114: 12.77214716 | C114: -0.01871267443
A115: 108 | B115: 13.47489689 | C115: 0.05356166796
A116: 109 | B116: 13.37800075 | C116: -0.007216842161
A117: 110 | B117: 13.24633391 | C117: -0.009890794876
A118: 111 | B118: 13.1992062 | C118: -0.003564136379
A119: 112 | B119: 13.01254546 | C119: -0.01424276433
A120: 113 | B120: 13.3760366 | C120: 0.02755086522
A121: 114 | B121: 13.5185745 | C121: 0.0105998363
A122: 115 | B122: 14.00924833 | C122: 0.03565307753
A123: 116 | B123: 14.0726671 | C123: 0.004516705983
A124: 117 | B124: 14.24367451 | C124: 0.01207850163
A125: 118 | B125: 14.2946832 | C125: 0.003574750122
A126: 119 | B126: 14.92266519 | C126: 0.04299354709
A127: 120 | B127: 14.72408437 | C127: -0.01339666528
A128: 121 | B128: 15.19152678 | C128: 0.03125327827
A129: 122 | B129: 15.17648729 | C129: -0.0009904827147
A130: 123 | B130: 14.51867638 | C130: -0.04431149458
A131: 124 | B131: 14.53861198 | C131: 0.001372158359
A132: 125 | B132: 14.34718477 | C132: -0.01325426536
A133: 126 | B133: 14.12449885 | C133: -0.01564294314
A134: 127 | B134: 14.2352428 | C134: 0.007809980461
A135: 128 | B135: 13.81510417 | C135: -0.02995827808
A136: 129 | B136: 13.57497964 | C136: -0.01753413292
A137: 130 | B137: =B136*EXP($B$2*$B$4+$B$3*SQRT($B$4)*_xlfn.NORM.S.INV(RAND())) -> 13.12281814 | C137: =LN(B137/B136) -> -0.03387580843
A138: 131 | B138: 12.81006756 | C138: -0.02412116756
A139: 132 | B139: 13.08930454 | C139: 0.02156405907
A140: 133 | B140: 13.25329779 | C140: 0.01245096201
A141: 134 | B141: 12.98095795 | C141: -0.02076290021
A142: 135 | B142: 13.12376495 | C142: 0.01094119408
A143: 136 | B143: 13.2358729 | C143: 0.008506082534
A144: 137 | B144: 13.0758805 | C144: -0.01216143778
A145: 138 | B145: 13.25455325 | C145: 0.01357178494
A146: 139 | B146: 12.78848422 | C146: -0.03579603935
A147: 140 | B147: 12.99909087 | C147: 0.01633432679
A148: 141 | B148: 12.75359572 | C148: -0.0190661729
A149: 142 | B149: 12.67887267 | C149: -0.005876210562
A150: 143 | B150: 12.59822176 | C150: -0.006381364683
A151: 144 | B151: 12.62438225 | C151: 0.002074368983
A152: 145 | B152: 12.6530624 | C152: 0.002269229838
A153: 146 | B153: 12.59796885 | C153: -0.004363674021
A154: 147 | B154: 12.74159403 | C154: 0.01133616399
A155: 148 | B155: 12.85373716 | C155: 0.008762836169
A156: 149 | B156: 12.74806604 | C156: -0.008255022251
A157: 150 | B157: 12.7754462 | C157: 0.002145486229
A158: 151 | B158: 12.86680146 | C158: 0.007125401299
A159: 152 | B159: 13.31361727 | C159: 0.03413690213
A160: 153 | B160: 13.31499924 | C160: 0.0001037961355
A161: 154 | B161: 13.08025493 | C161: -0.01778732688
A162: 155 | B162: 13.12809503 | C162: 0.003650757206
A163: 156 | B163: 13.07707897 | C163: -0.003893592246
A164: 157 | B164: 13.57770153 | C164: 0.03756785336
A165: 158 | B165: 13.48408714 | C165: -0.006918593728
A166: 159 | B166: 14.24380621 | C166: 0.05481190017
A167: 160 | B167: 14.21023983 | C167: -0.002359340631
A168: 161 | B168: 14.73110404 | C168: 0.03599835995
A169: 162 | B169: 14.54051357 | C169: -0.01302238709
A170: 163 | B170: 14.55535044 | C170: 0.001019861407
A171: 164 | B171: 14.33739923 | C171: -0.01508720017
A172: 165 | B172: 14.42602803 | C172: 0.006162623095
A173: 166 | B173: 13.95311276 | C173: -0.03333145696
A174: 167 | B174: 14.12985931 | C174: 0.01258761981
A175: 168 | B175: 13.95950608 | C175: -0.01212952452
A176: 169 | B176: 14.52009503 | C176: 0.03937283867
A177: 170 | B177: 14.44115976 | C177: -0.005451107756
A178: 171 | B178: 14.44775572 | C178: 0.0004566426687
A179: 172 | B179: 14.62425905 | C179: 0.01214263953
A180: 173 | B180: 14.52571551 | C180: -0.006761166539
A181: 174 | B181: 14.14866893 | C181: -0.02630001056
A182: 175 | B182: 14.01738317 | C182: -0.009322337026
A183: 176 | B183: 13.7629169 | C183: -0.01832042033
A184: 177 | B184: 13.95562974 | C184: 0.01390519841
A185: 178 | B185: 13.91670629 | C185: -0.002792982872
A186: 179 | B186: 13.64562731 | C186: -0.0196708827
A187: 180 | B187: 13.02192734 | C187: -0.04678447186
A188: 181 | B188: 13.01611126 | C188: -0.000446736931
A189: 182 | B189: 13.23415306 | C189: 0.01661292329
A190: 183 | B190: 13.36882635 | C190: 0.0101247635
A191: 184 | B191: 13.46915598 | C191: 0.007476724107
A192: 185 | B192: 13.73768001 | C192: 0.01974009437
A193: 186 | B193: 13.4180126 | C193: -0.02354439493
A194: 187 | B194: 13.76303658 | C194: 0.02538846149
A195: 188 | B195: 14.23362466 | C195: 0.03362060948
A196: 189 | B196: 14.1713122 | C196: -0.004387445545
A197: 190 | B197: 14.476407 | C197: 0.02130056736
A198: 191 | B198: 14.50880666 | C198: 0.002235599867
A199: 192 | B199: 14.14794887 | C199: -0.02518616373
A200: 193 | B200: 13.84249311 | C200: -0.02182658494
A201: 194 | B201: =B200*EXP($B$2*$B$4+$B$3*SQRT($B$4)*_xlfn.NORM.S.INV(RAND())) -> 13.49515514 | C201: =LN(B201/B200) -> -0.02541232983
... 56 more rows

Sheet Sheet3
A1: Initial stock price | B1: 20
A2: Mean return | B2: 0.12
A3: Delta t | B3: =1/12 -> 0.08333333333
C4: Stock price when sigma =
A5: Month | B5: Random number | C5: 0.2 | D5: 0.4 | E5: 0.8
A6: 0 | C6: =$B$1 -> 20 | D6: =$B$1 -> 20 | E6: 20
A7: 1 | B7: =_xlfn.NORM.S.INV(RAND()) -> -1.156803991 | C7: =C6*EXP($B$2*$B$3+C$5*$B7*SQRT($B$3)) -> 18.89588482 | D7: =D6*EXP($B$2*$B$3+D$5*$B7*SQRT($B$3)) -> 17.67508559 | E7: 15.46500664 | F7: =getformula(E7) -> <-- =E6*EXP($B$2*$B$3+E$5*$B7*SQRT($B$3))
A8: 2 | B8: =_xlfn.NORM.S.INV(RAND()) -> -0.4016448238 | C8: =C7*EXP($B$2*$B$3+C$5*$B8*SQRT($B$3)) -> 18.64830373 | D8: 17.0436569 | E8: 14.23671137
A9: 3 | B9: -0.97397556 | C9: 17.80577217 | D9: 15.38377057 | E9: 11.48330126
A10: 4 | B10: -0.5843684574 | C10: 17.38806681 | D10: 14.52448778 | E10: 10.13444281
A11: 5 | B11: 0.5301772084 | C11: 18.10872653 | D11: 15.5966419 | E11: 11.56957703
A12: 6 | B12: -0.6577600644 | C12: 17.60914124 | D12: 14.60120469 | E12: 10.03898288
A13: 7 | B13: 1.488803451 | C13: 19.38257106 | D13: 17.51427483 | E13: 14.30058195
A14: 8 | B14: -0.842272151 | C14: 18.64812599 | D14: 16.05080561 | E14: 11.89104756
A15: 9 | B15: 1.51447452 | C15: 20.55663757 | D15: 19.31023945 | E15: 17.03957738
A16: 10 | B16: -0.5036424089 | C16: 20.16817924 | D16: 18.40237773 | E16: 15.32104675
A17: 11 | B17: -0.6520182557 | C17: 19.61828002 | D17: 17.23929373 | E17: 13.31179283
A18: 12 | B18: -0.5714198096 | C18: 19.17238279 | D18: 16.30072233 | E18: 11.78333882
